[Event "45th FIDE Olympiad 2024"]
[Site "Budapest"]
[Date "2024.09.15"]
[Round "5.84"]
[White "Solomon, Jonathan"]
[Black "Ibrahim, Imran Saeed"]
[Result "1-0"]
[ECO "D00"]
[WhiteElo "1536"]
[BlackElo "1697"]
[PlyCount "99"]
[EventDate "2024.09.05"]
[EventType "team-tourn"]
[EventCountry "HUN"]
[WhiteTeam "Antigua and Barbuda"]
[BlackTeam "Maldives"]
[BlackTeamCountry "MDV"]
[TimeControl "40/5400+30:1800+30"]

1. d4 d5 2. Bf4 c5 3. e3 Nf6 4. Nf3 Nc6 5. Nbd2 Bf5 6. c3 e6 7. Bb5 Bd6 8. Qa4 Qc7 9. Bxc6+ bxc6 10. Bxd6 Qxd6 11. Ne5 O-O 12. Qxc6 Qxc6 13. Nxc6 c4 14. Ne7+ Kh8 15. Nxf5 exf5 16. O-O Ne4 17. Nxe4 fxe4 18. b3 Rfc8 19. Rfc1 a5 20. bxc4 Rxc4 21. Rc2 Rb8 22. f3 f5 23. Kf2 Kg8 24. Ke2 a4 25. Kd2 Kf7 26. fxe4 fxe4 27. Rf1+ Ke6 28. g4 g6 29. g5 Rb7 30. Rf6+ Ke7 31. h4 Rbc7 32. h5 R7c6 33. Rxc6 Rxc6 34. Rb2 Ke6 35. hxg6 hxg6 36. Rb5 Rc4 37. Rb4 Rxb4 38. cxb4 Kd6 39. a3 Kc6 40. Ke2 Kd6 41. Kf2 Kc6 42. Kg3 Kb5 43. Kf4 Kc4 44. Ke5 Kd3 45. b5 Kxe3 46. b6 Kf3 47. b7 e3 48. b8=Q e2 49. Qf8+ Kg2 50. Qb4 1-0

[Event "45th FIDE Olympiad 2024"]
[Site "Budapest"]
[Date "2024.09.15"]
[Round "5.85"]
[White "Pultinevicius, Paulius"]
[Black "Henderson De La Fuente, Lance"]
[Result "1-0"]
[ECO "D31"]
[WhiteElo "2587"]
[BlackElo "2519"]
[Annotator "TA"]
[PlyCount "99"]
[EventDate "2024.09.05"]
[EventType "team-tourn"]
[EventCountry "HUN"]
[SourceTitle "playchess.com"]
[Source "ChessBase"]
[SourceQuality "1"]
[WhiteTeam "Lithuania"]
[BlackTeam "Andorra"]
[WhiteTeamCountry "LTU"]
[BlackTeamCountry "AND"]
[TimeControl "40/5400+30:1800+30"]

{[%evp 17,99,0,5,7,4,7,12,22,22,18,2,25,9,14,18,10,31,13,12,0,0,0,0,0,0,0,0,0,17,15,13,5,19,17,73,47,65,53,54,52,55,56,73,68,70,71,72,56,60,59,131,129,233,227,223,184,194,193,280,243,298,295,379,337,431,410,402,398,518,509,594,613,858,852,1266,1199,1319,1319,1541,1452,1715,1652,29966,29967]} 1. d4 d5 2. c4 e6 3. Nc3 c6 4. e4 dxe4 5. Nxe4 Bb4+ 6. Bd2 Qxd4 7. Bxb4 Qxe4+ 8. Ne2 Na6 9. Bf8 Ne7 10. Bxg7 {D31: Queen's Gambit Declined: Semi-Slav without ...Nf6 (+ Marshall Gambit and Noteboom) and Exchange Variation lines without ...Nf6.} Nb4 {Hoping for ...Rg8.} 11. Qd6 Nd3+ 12. Kd2 Nf5 13. Qxd3 Qxd3+ 14. Kxd3 Nxg7 15. Kc3 h5 $146 ({Predecessor:} 15... b6 16. g4 Bb7 17. Bg2 O-O-O 18. Rad1 c5 19. Bxb7+ Kxb7 20. Rxd8 Rxd8 21. Kc2 h5 {½-½ Sadhwani,R (2632)-Anton Guijarro,D (2669) ESP-chT CECLUB Honor 2023 (7.3)}) 16. h4 Bd7 17. Ng3 c5 18. Ne4 b6 $1 19. Nf6+ Ke7 20. Nxd7 Kxd7 21. Bd3 Ke7 22. a3 Nf5 23. Bxf5 exf5 24. g3 Rad8 25. b4 f4 (25... Rhe8 $11) 26. Rhe1+ Kf6 27. Re4 {Prevents Rd4} fxg3 28. Rf4+ $1 (28. fxg3 Rhe8 29. Rf1+ Kg7 30. Rxe8 Rxe8 $17) 28... Kg6 29. Rg1 f6 30. bxc5 (30. fxg3 Rhe8 $11) 30... bxc5 31. Rxg3+ ({Of course not} 31. fxg3 Rhe8 $17) 31... Kf7 32. Rf5 Rd4 33. Rh3 {[%cal Oa3a4]} ({Much worse is} 33. Rxc5 Rxh4 34. Rc7+ Ke6 $15) 33... Re8 (33... Kg6 $14 34. Rxc5 Rf4) 34. Rxh5 $16 ({Don't play} 34. Rxc5 $6 Ree4 $14) 34... Rf4 (34... Ree4 $16) 35. Rxc5 $18 Rxf2 36. Rc7+ Kg6 37. Rxa7 Re1 (37... Rc8 $142 38. Rg3+ Kf5) 38. Ra5 Rc1+ 39. Kb4 Rf4 40. Rc5 Rf2 41. h5+ Kh6 42. Rg3 Rb1+ 43. Ka5 Rb7 44. Rb5 Rf7 45. Rc3 f5 46. c5 Re2 47. c6 Ree7 48. Kb6 {Black must now prevent c7.} Re6 49. Rcc5 Ref6 {[#]} 50. Rxf5 $3 {[%mdl 512]} 1-0

[Event "45th FIDE Olympiad 2024"]
[Site "Budapest"]
[Date "2024.09.15"]
[Round "5.86"]
[White "Fluvia Poyatos, Jordi"]
[Black "Kazakouski, Valery"]
[Result "1/2-1/2"]
[ECO "B12"]
[WhiteElo "2438"]
[BlackElo "2577"]
[Annotator "TA"]
[PlyCount "86"]
[EventDate "2024.09.05"]
[EventType "team-tourn"]
[EventCountry "HUN"]
[SourceTitle "playchess.com"]
[Source "ChessBase"]
[SourceQuality "1"]
[WhiteTeam "Andorra"]
[BlackTeam "Lithuania"]
[WhiteTeamCountry "AND"]
[BlackTeamCountry "LTU"]
[TimeControl "40/5400+30:1800+30"]

{[%evp 10,86,33,18,35,43,27,7,6,-4,-11,0,0,-10,0,-10,0,0,-5,-26,-14,-12,0,-27,-26,-29,-28,-22,0,0,0,0,0,-18,-23,-38,-22,-27,-28,-20,-22,-37,-37,-37,-37,-37,-37,-37,0,-18,-27,-18,0,0,0,0,0,0,0,0,0,0,0,0,0,0,0,-22,-22,-22,-22,-22,0,0,0,0,0,0,0]} 1. e4 c6 2. d4 d5 3. e5 Bf5 4. Nf3 e6 5. Be2 Nd7 6. O-O a5 7. Nc3 Bg6 8. Bd2 Ne7 9. Bd3 Bxd3 10. cxd3 Nf5 11. Rc1 h5 12. Qb3 Qb6 13. Qxb6 Nxb6 14. Nd1 Be7 {[%cal Og7g5]} 15. Ne3 Nh6 16. h4 Nd7 17. g3 a4 18. Rc2 f6 19. Ng2 Kf7 20. Re1 Nf5 21. Ne3 Nxe3 22. Bxe3 fxe5 23. Nxe5+ Nxe5 24. dxe5 Ra5 25. f4 c5 26. Kf2 b6 27. Kf3 Rc8 28. Rec1 Ke8 29. g4 hxg4+ 30. Kxg4 g6 {The position is equal.} 31. Rh1 Kd7 32. h5 gxh5+ 33. Rxh5 Rg8+ 34. Kf3 Raa8 35. Rh7 d4 36. Bf2 {[#] Bh4 is the strong threat.} Rh8 37. Rxh8 Rxh8 $11 {[%mdl 4096] Endgame. KRB-KRB} 38. Bg3 Kc6 39. Rh2 Rxh2 40. Bxh2 Bh4 41. Bg3 Bxg3 42. Kxg3 Kd7 (42... b5 $5 43. b3 $8 axb3 44. axb3 Kc7 $11) 43. b3 axb3 {Weighted Error Value: White=0.06 (flawless) /Black=0.05 (flawless) .  Inaccurate:     	White=1     	Black=1      OK:         	White=10    	Black=17     Best:        	White=1     	---} 1/2-1/2

[Event "45th FIDE Olympiad 2024"]
[Site "Budapest"]
[Date "2024.09.15"]
[Round "5.87"]
[White "Laurusas, Tomas"]
[Black "De La Riva Aguado, Oscar"]
[Result "1/2-1/2"]
[ECO "E90"]
[WhiteElo "2569"]
[BlackElo "2431"]
[Annotator "TA"]
[PlyCount "51"]
[EventDate "2024.09.05"]
[EventType "team-tourn"]
[EventCountry "HUN"]
[SourceTitle "playchess.com"]
[Source "ChessBase"]
[SourceQuality "1"]
[WhiteTeam "Lithuania"]
[BlackTeam "Andorra"]
[WhiteTeamCountry "LTU"]
[BlackTeamCountry "AND"]
[TimeControl "40/5400+30:1800+30"]

{[%evp 11,51,36,39,38,41,41,41,32,41,37,50,40,38,44,41,0,0,0,16,-11,15,23,65,0,0,0,0,0,0,-106,-55,-61,-46,-95,-60,-83,0,-111,0,-83,0,-81]} 1. d4 Nf6 2. c4 g6 3. Nc3 Bg7 4. e4 d6 5. Nf3 O-O 6. Bd3 Bg4 7. Be2 Nfd7 8. Be3 Bxf3 9. Bxf3 {White is slightly better.} Nc6 10. h4 e5 11. d5 Nd4 12. h5 c5 13. hxg6 fxg6 14. Bg4 Nf6 15. Bh3 Qe8 16. Qd3 a6 {Inhibits Nb5.} 17. a4 (17. Ne2 $14) 17... Kh8 18. g3 b5 19. axb5 ({Of course not} 19. cxb5 axb5 20. O-O bxa4 $15) 19... axb5 20. O-O (20. Rxa8 $11 Qxa8 21. cxb5) 20... Rxa1 ({Better is} 20... bxc4 $17 21. Qxc4 Rb8) 21. Rxa1 $15 bxc4 22. Qd1 (22. Qxc4 $15 {is more appropriate.} g5 23. Bf5 (23. Bxg5 $2 {perishes.} Nf3+ 24. Kg2 Nxg5 $19)) 22... Nh5 23. Bg4 Nf6 24. Bh3 $1 Nh5 25. Bg4 $1 Nf6 {Excellent horsemanship.} 26. Bh3 $1 {Weighted Error Value: White=0.17 (very precise) /Black=0.27 (precise) .  Mistake:       	White=3     	Black=1      Inaccurate:     	White=1     	Black=3      OK:         	White=7     	Black=5      Strong:       	White=3     	---} 1/2-1/2

[Event "45th FIDE Olympiad 2024"]
[Site "Budapest"]
[Date "2024.09.15"]
[Round "5.88"]
[White "Ribera Veganzones, Josep Maria"]
[Black "Pidluznij, Gleb"]
[Result "0-1"]
[ECO "C55"]
[WhiteElo "2167"]
[BlackElo "2425"]
[Annotator "TA"]
[PlyCount "112"]
[EventDate "2024.09.05"]
[EventType "team-tourn"]
[EventCountry "HUN"]
[SourceTitle "playchess.com"]
[Source "ChessBase"]
[SourceQuality "1"]
[WhiteTeam "Andorra"]
[BlackTeam "Lithuania"]
[WhiteTeamCountry "AND"]
[BlackTeamCountry "LTU"]
[TimeControl "40/5400+30:1800+30"]

{[%evp 10,112,8,2,7,12,25,10,14,14,30,40,37,36,43,34,34,29,33,40,43,15,21,10,39,3,25,11,12,0,18,16,26,0,21,20,22,28,39,32,39,37,45,45,45,44,44,41,51,47,46,27,70,71,195,70,79,78,84,64,65,62,74,-136,-151,-172,-161,-156,-162,-156,-74,-125,-91,-111,-122,-746,-689,-706,-638,-628,-547,-623,-613,-672,-679,-917,-929,-971,-853,-834,-760,-745,-731,-681,-568,-1260,-1209,-1253,-558,-1660,-1525,-29960,-29953,-29991,-29992]} 1. e4 e5 2. Nf3 Nc6 3. Bc4 Nf6 4. d3 Be7 5. Nc3 d6 6. a3 O-O 7. Be3 h6 8. h3 Be6 {The position is equal.} 9. Nd5 Nb8 10. Nxf6+ Bxf6 11. Bxe6 fxe6 12. O-O Nc6 13. Nh2 Qd7 14. Qg4 Kh7 15. g3 Rf7 16. h4 Raf8 17. Kg2 Bd8 18. Qh5 Qe8 {[%cal Of7f2] [#] Hoping for ...Rxf2+!} 19. Qe2 d5 20. Ng4 Be7 21. Rac1 a5 {[%cal Ba7a5,Ba5a4][%mdl 32]} 22. c4 d4 23. Bd2 {[%cal Ob2b4]} a4 24. c5 Qa8 25. Rc4 Qa6 26. Qd1 Qb5 27. Bb4 Ra8 28. h5 Bg5 29. Qc2 Raf8 30. Rb1 g6 31. Rh1 {aiming for Bd2.} Rf3 (31... gxh5 $16 {was necessary.} 32. Rxh5 Kg6) 32. Qe2 (32. Bd2 $18 gxh5 33. Rxh5) 32... gxh5 33. Rxh5 Kg6 34. Rh2 Kg7 (34... h5 35. Rxh5 $16) 35. Qf1 (35. Qxf3 Rxf3 36. Kxf3 Na5 37. Nxe5 (37. Bxa5 Qxa5 38. Kg2 Qd2 $17) 37... Bf6 $15 (37... Nxc4 38. Nxc4 Qe8 39. Rh3 $11)) 35... Be3 36. Qe2 (36. Kh1 $16) 36... Rxf2+ $1 $17 37. Nxf2 Rxf2+ 38. Qxf2 Bxf2 39. Kxf2 Na5 (39... Nxb4 $142 40. axb4 a3 41. bxa3 Qa4) 40. Bxa5 Qxb2+ 41. Kg1 Qb1+ 42. Kf2 $2 {[%mdl 8192]} (42. Kg2 $17) 42... Qxd3 $19 43. Rb4 Qc2+ 44. Kg1 Qc1+ ({Worse is} 44... Qxe4 45. Rhb2 $11) 45. Kg2 Qxc5 46. Bxc7 Qxc7 {[%mdl 4096] Endgame. KQ-KRR} 47. Kh3 Qc6 48. Re2 Kg6 49. Kh2 Qc1 {[#] Threatens to win with ...d3.} 50. Rb6 d3 (50... Qxa3 51. Rxe6+ Kf7 52. Rxe5 $15) 51. Rf2 Qc4 (51... Qxa3 52. Rxe6+ Kh7 53. Rxe5 $15) 52. Rb4 Qc5 53. Kg2 b5 (53... Qe3 $142 {...d2 would now be deadly.} 54. Rb1 Qxe4+ 55. Kh2 Qd4) 54. Rbb2 Qe3 55. Rxb5 d2 56. Rf1 Qe2+ {Weighted Error Value: White=0.51/Black=0.21 (precise) .  Loses game:     	White=1     	---        Mistake:       	White=2     	Black=2      Inaccurate:     	White=4     	Black=2      OK:         	White=11    	Black=10     Best:        	White=3     	Black=1      Strong:       	---       	Black=1} 0-1

[Event "45th FIDE Olympiad 2024"]
[Site "Budapest"]
[Date "2024.09.15"]
[Round "5.89"]
[White "Dragnev, Valentin"]
[Black "Khusenkhojaev, Mustafokhuja"]
[Result "1-0"]
[ECO "C90"]
[WhiteElo "2556"]
[BlackElo "2283"]
[Annotator "TA"]
[PlyCount "93"]
[EventDate "2024.09.05"]
[EventType "team-tourn"]
[EventCountry "HUN"]
[SourceTitle "playchess.com"]
[Source "ChessBase"]
[SourceQuality "1"]
[WhiteTeam "Austria"]
[BlackTeam "Tajikistan"]
[WhiteTeamCountry "AUT"]
[BlackTeamCountry "TJK"]
[TimeControl "40/5400+30:1800+30"]

{[%evp 26,93,23,10,35,0,0,0,0,-7,7,0,-11,-11,0,-16,0,-34,-41,-43,-12,-35,-20,-24,-25,-33,0,0,0,0,0,-1,40,13,38,38,198,134,217,222,535,561,508,384,593,604,572,579,956,975,999,592,539,0,1487,1544,29965,29961,29969,29971,29971,29953,29967,29969,29964,2297,29968,29971,2250,720]} 1. e4 e5 2. Nf3 Nc6 3. Bb5 a6 4. Ba4 Nf6 5. O-O Be7 6. Re1 b5 7. Bb3 d6 8. a4 Bd7 9. c3 O-O 10. d4 h6 {C90: Closed Ruy Lopez with 7...d6: Early deviations.} 11. Bc2 $5 {[%mdl 4] Exploring less charted territory.} exd4 12. Nxd4 Rb8 $146 ({Predecessor:} 12... Ne5 13. f4 Ng6 14. e5 dxe5 15. fxe5 Nd5 16. e6 Be8 17. Nd2 Bc5 18. N2b3 Bb6 {1-0 Divya,D (2389)-Makhija,A (2126) Asian Continental (Women) op 20th 2023 (2)}) 13. Nd2 Re8 14. Nf1 b4 15. a5 Bf8 16. Ng3 bxc3 17. bxc3 g6 18. Bf4 Ne5 19. Qc1 c5 20. Nf3 Kh7 (20... Nxf3+ {simplifies} 21. gxf3 h5 22. Bg5 Be7) 21. h4 (21. Nxe5 {simplifies} dxe5 22. Be3 Qc7 23. h3) 21... Nfg4 22. h5 Qf6 (22... Nxf3+ 23. gxf3 Ne5 24. Bxe5 dxe5 25. f4 $14) 23. Bxe5 dxe5 24. Ba4 Bxa4 25. Rxa4 Rb7 26. hxg6+ fxg6 27. Nf1 h5 28. Ra2 Bh6 29. Qd1 Rd8 30. Qe2 Rbd7 $2 (30... Rb3 $14) 31. Rb1 ({Better is} 31. Rb2 $18) 31... Rd3 (31... Qe6 $16 32. Rb6 Qf7 33. Rxa6 Rf8) 32. Rab2 $18 Rxc3 $2 (32... Qf7 {is more resistant.} 33. N1h2 Bf4 34. Nxg4 (34. Rb7 Bxh2+ 35. Nxh2 R8d7 $16) 34... hxg4) 33. Rb7+ $18 Bg7 34. Ra7 Qf4 (34... Rg8 $142 35. Rb6 (35. Qxa6 Rxf3 36. gxf3 Qxf3 $18) (35. Rxa6 Qd8 $18) (35. Qd2 Rxf3 36. gxf3 Qxf3 $16) 35... Qf4) 35. Rbb7 $18 Rg8 36. Rf7 Qc1 37. Qxa6 Rb3 38. Nh4 Qg5 39. Nf3 (39. g3 $142) 39... Qc1 $18 40. N3d2 Rb2 41. Qd6 Kh6 42. Rxg7 Rxg7 43. Qf8 Rxd2 44. Qxg7+ Kg5 45. Ra6 (45. Qe7+ $142 Kf4 46. Qf7+ Kxe4 47. Qxg6+ (47. Qf3+ Kd4 $18) 47... Kd4 48. Rd7+ (48. Qxh5 Nf6 $18) 48... Kc3 49. Rxd2 Nf6 50. Qxf6) 45... Kf4 46. Qf7+ Kxe4 47. Qf3+ (47. Qxg6+ $142 Kf4 48. Qf7+ (48. Qxh5 Rxf2 49. g3+ Ke4 $18) 48... Ke4 49. Qf3+ (49. Qxh5 Rd5 $18) 49... Kd4 50. Rd6+ Kc4 51. Qf7+ (51. Rxd2 Qxf1+ 52. Kxf1 Nh2+ 53. Ke2 Nxf3 54. Kxf3 Kb5 55. Ra2 Ka6) 51... Kc3 52. Qf3+ (52. Rxd2 c4 $18) 52... Kc4 53. Qf7+ (53. Rxd2 Kb4 54. Qb7+ Kc3 55. a6 h4 56. a7 h3 57. Qf3+ Kc4 58. Qxg4+ Kb3) 53... Kc3 54. Qf3+ (54. Rxd2 Qxf1+ 55. Kxf1 Kxd2 56. a6 Nh2+ 57. Kg1 h4 58. a7 Nf3+ 59. Qxf3 h3) 54... Kc4) 1-0

[Event "45th FIDE Olympiad 2024"]
[Site "Budapest"]
[Date "2024.09.15"]
[Round "5.89"]
[White "Hamperl, Fred"]
[Black "Koumba, Mounguen Jose Evrard"]
[Result "1-0"]
[ECO "B51"]
[WhiteElo "1977"]
[BlackElo "1957"]
[PlyCount "69"]
[EventDate "2024.09.05"]
[EventType "team-tourn"]
[EventCountry "HUN"]
[WhiteTeam "Guernsey"]
[BlackTeam "Gabon"]
[TimeControl "40/5400+30:1800+30"]

1. e4 c5 2. Nf3 d6 3. Bb5+ Nc6 4. O-O e6 5. c3 Nge7 6. Re1 a6 7. Bf1 g6 8. d4 cxd4 9. cxd4 Bg7 10. Nc3 O-O 11. d5 Ne5 12. Nxe5 Bxe5 13. a4 Bg7 14. Qb3 e5 15. Be3 f5 16. Bb6 Qd7 17. a5 fxe4 18. Nxe4 Bh6 19. Rad1 Nf5 20. Rd3 Qf7 21. Rf3 Qe7 22. Rc3 Nd4 23. Qb4 Qf7 24. Rc7 Qf5 25. Bxd4 exd4 26. Qxd4 Qf4 27. g3 Qe5 28. Qxe5 dxe5 29. Nc5 Bd2 30. Rxe5 Bxa5 31. Rce7 Bb4 32. d6 b6 33. Ne4 Bf5 34. Bc4+ Kh8 35. Ng5 1-0

[Event "45th FIDE Olympiad 2024"]
[Site "Budapest"]
[Date "2024.09.15"]
[Round "5.90"]
[White "Karimov, Alisher"]
[Black "Ragger, Markus"]
[Result "1-0"]
[ECO "E04"]
[WhiteElo "2240"]
[BlackElo "2601"]
[Annotator "TA"]
[PlyCount "71"]
[EventDate "2024.09.05"]
[EventType "team-tourn"]
[EventCountry "HUN"]
[SourceTitle "playchess.com"]
[Source "ChessBase"]
[SourceQuality "1"]
[WhiteTeam "Tajikistan"]
[BlackTeam "Austria"]
[WhiteTeamCountry "TJK"]
[BlackTeamCountry "AUT"]
[TimeControl "40/5400+30:1800+30"]

{[%evp 18,71,5,-1,20,0,25,8,0,0,17,24,25,22,32,35,35,55,22,0,106,77,90,87,94,84,85,90,85,83,91,83,126,123,227,233,238,83,203,204,192,190,534,491,587,587,839,833,839,826,825,810,904,792,2497,608]} 1. d4 Nf6 2. c4 e6 3. g3 d5 4. Nf3 dxc4 5. Bg2 a6 6. O-O Nc6 {[%cal Bb8c6,Bc6b4,Bb4d3][%mdl 32]} 7. Nc3 Rb8 8. e4 Be7 9. d5 exd5 10. exd5 Nb4 {[%cal Rb4d5]} 11. Ne5 {[%cal Bf3e5,Be5c4,Bc4a5,Ba5c6][%mdl 32]} Bf5 12. a3 Nd3 {The position is equal.} 13. Nxc4 O-O 14. Be3 b5 15. Na5 c5 16. Nc6 {[%csl LRb8,LRd8]} Qd7 (16... Nxb2 $2 17. Qe2 Qd7 18. Nxb8 (18. Qxb2 Rbe8 $18) 18... Rxb8 19. Qxb2 $18) 17. Nxb8 Rxb8 18. b3 b4 (18... Bd6 $1 $11 {remains equal.}) 19. axb4 $16 cxb4 20. Ne2 {[%cal Bc3e2,Be2d4,Bd4c2][%mdl 32]} (20. Ne4 Nxe4 21. Qxd3 Nxg3 22. Qxa6 Nxf1 23. Qxf1 Bd6 $14) 20... Nxd5 21. Nd4 ({Don't do} 21. Rxa6 Nxe3 22. fxe3 Bc5 $14) 21... Bg6 22. Rxa6 Nxe3 23. fxe3 {[%cal Oa6g6]} Bg5 24. Nc2 {Strongly threatening h4.} Rd8 25. h4 $1 {[%cal Bh2h4,Bh4h5][%mdl 32]} Bf6 (25... Be7 $16) 26. h5 $18 Bf5 {[#]} 27. Qf3 (27. Rxf6 $1 $18 {and the rest is easy.} gxf6 28. Qf3 (28. Nd4 Ne5 $14)) 27... Be6 {[#]} (27... Bg4 $16 {was called for.} 28. Qb7 Qxb7 29. Bxb7 Bxh5) 28. Ra8 $1 Bxb3 29. Nd4 $36 {[%mdl 2048] White has strong initiative.} Bc4 (29... Ba4 30. Rxd8+ Bxd8) 30. Rfa1 {White is clearly winning.} Ne5 31. Qe4 {And now Rxd8+ would win.} b3 {[%cal Bb4b3,Bb3b2][%mdl 32]} 32. Rxd8+ Bxd8 33. Qxe5 {[%cal Oa1a7] White wants to mate with Ra7!} b2 34. Rb1 Bc7 35. Qe4 Qa4 36. Qa8+ {Weighted Error Value: White=0.07 (flawless) /Black=0.64.  Mistake:       	White=1     	Black=4      Inaccurate:     	---       	Black=2      OK:         	White=14    	Black=6      Best:        	White=3     	Black=3      Strong:       	White=1     	---} 1-0

[Event "45th FIDE Olympiad 2024"]
[Site "Budapest"]
[Date "2024.09.15"]
[Round "5.90"]
[White "Bongo Akanga Ndjila, Barthelemy"]
[Black "Rowe, Peter"]
[Result "1-0"]
[ECO "C41"]
[WhiteElo "1894"]
[BlackElo "1973"]
[PlyCount "61"]
[EventDate "2024.09.05"]
[EventType "team-tourn"]
[EventCountry "HUN"]
[WhiteTeam "Gabon"]
[BlackTeam "Guernsey"]
[TimeControl "40/5400+30:1800+30"]

1. d4 d6 2. Nf3 Nf6 3. Nc3 Nbd7 4. e4 e5 5. Be2 Be7 6. O-O O-O 7. h3 c6 8. Be3 Qc7 9. a3 b5 10. d5 a6 11. dxc6 Qxc6 12. Nd5 Nxd5 13. exd5 Qc7 14. Rc1 Nb6 15. Bxb6 Qxb6 16. b4 Bd7 17. c4 bxc4 18. Bxc4 Rfc8 19. Re1 f5 20. Nxe5 Bb5 21. Nc6 Bg5 22. Rc3 Bf6 23. Rc1 Bg5 24. Bxb5 axb5 25. Rc3 Re8 26. Re6 Bh4 27. Qf3 Bf6 28. Rce3 Rxe6 29. dxe6 Re8 30. e7 Bd4 31. Qd5+ 1-0

[Event "45th FIDE Olympiad 2024"]
[Site "Budapest"]
[Date "2024.09.15"]
[Round "5.91"]
[White "Blohberger, Felix"]
[Black "Ilkhomi, Jaloliddin"]
[Result "1-0"]
[ECO "A07"]
[WhiteElo "2520"]
[BlackElo "2227"]
[Annotator "TA"]
[PlyCount "67"]
[EventDate "2024.09.05"]
[EventType "team-tourn"]
[EventCountry "HUN"]
[SourceTitle "playchess.com"]
[Source "ChessBase"]
[SourceQuality "1"]
[WhiteTeam "Austria"]
[BlackTeam "Tajikistan"]
[WhiteTeamCountry "AUT"]
[BlackTeamCountry "TJK"]
[TimeControl "40/5400+30:1800+30"]

{[%evp 16,67,39,29,45,34,47,39,52,55,96,81,101,95,171,177,170,168,177,164,174,158,219,217,227,208,239,235,238,190,189,208,204,204,371,383,383,386,386,228,352,355,396,393,905,853,892,554,29983,29984,29984,29985,29985,29986]} 1. Nf3 Nf6 2. g3 d5 3. Bg2 c6 4. O-O Bf5 5. d3 e6 6. b3 Nbd7 7. Bb2 Bc5 8. Nbd2 h6 {[#]} 9. e4 $1 Bg4 (9... Bg6 10. e5) 10. h3 Bxf3 11. Qxf3 (11. Nxf3 dxe4 12. dxe4 Nxe4) 11... O-O {White is slightly better.} 12. e5 Nh7 13. d4 Be7 14. Qe2 {White is more active.} c5 (14... a5 $16) 15. c4 $18 Nb6 16. Rfd1 cxd4 17. Bxd4 Rc8 18. Bxb6 Qxb6 (18... axb6 $16 19. cxd5 exd5) 19. cxd5 exd5 20. Bxd5 Ng5 21. Nc4 Qa6 {Black is weak on the light squares} 22. f4 Ne6 23. Kh2 Rfd8 24. a4 {[%cal Ba2a4,Ba4b5][%mdl 32]} b5 $2 {[#]} (24... Nc7) 25. Nd6 $1 {[%mdl 512]} Bxd6 26. axb5 (26. exd6 Qxd6 27. axb5 Qc5 28. Bxe6 fxe6 29. Qxe6+ Kh8 30. Rxd8+ Rxd8 $16) 26... Qb6 {Threatens to win with ...Be7.} 27. Bxe6 (27. exd6 Nd4 28. Qh5 Rc2+ 29. Kh1 Nf5 30. Qxf7+ (30. Qxf5 Qf2 $11) 30... Kh8 31. Qxf5 Qf2 $18) (27. Ra6 $142 Qc7 28. exd6 Rxd6 29. Rxd6 (29. Bxe6 Qc2 $14) 29... Qxd6 30. Bb7) 27... fxe6 (27... Bxe5 $142 28. Bxf7+ (28. Qxe5 Qf2+ 29. Kh1 Qf3+ 30. Kg1 Rxd1+ 31. Rxd1 Qxd1+ 32. Kf2 Rc2+ 33. Ke3 Re2+ 34. Kf3 Rxe5+ 35. Kg2 Qd2+ 36. Kh1 Re1#) (28. fxe5 Qxe6 29. Rxd8+ Rxd8 $14) (28. Bxc8 Bxa1 29. Bd7 Bd4 $11) 28... Kxf7 29. Rxd8 (29. fxe5 Rxd1 30. Rxd1 Ke7 $18) 29... Rxd8 30. fxe5 (30. Qxe5 Rd2+) 30... Kg8) 28. Ra6 (28. exd6 Rxd6 29. Rxd6 (29. Ra6 Qxb5 30. Qxb5 Rc2+ 31. Kg1 Rxd1+ $11) 29... Qxd6 30. Rxa7 Rb8 $18) 28... Qc5 29. exd6 {[%cal Od1d2,Be5d6,Bd6d7][%mdl 32] Strongly threatening Rd2!} Kh8 $2 (29... Rd7 30. Qxe6+ Kh8) 30. d7 (30. Qxe6 {gets mated.} Qf2+ (30... Qxb5 $2 {loses.} 31. Ra2 $18) (30... Qc2+ 31. Kg1 Qxd1+ 32. Kf2 Rc2+ 33. Ke3 Re2+ 34. Kf3 Rxe6+ 35. Kg2 Qd2+ 36. Kh1 Re1#) 31. Kh1 Rc2 (31... Qxg3 32. Qg4 $18) (31... Qf3+ 32. Kg1 Rc2 33. Qg8+ Rxg8 34. Rd2 Rxd2 35. Rxa7 Qg2#) (31... Qxg3 $2 32. Qg4 $18) (31... Qf3+ 32. Kg1 Rc2 33. Qg8+ Kxg8 34. Rd2 Rxd2 35. Rxa7 Qg2#)) 30... Rc7 31. Rxe6 {White threatens Re8+ and mate.} Rcxd7 32. Re8+ {White mates.} Rxe8 33. Qxe8+ Kh7 34. Qe4+ {White took control after the opening.   Weighted Error Value: White=0.13 (very precise) /Black=0.54.  Mistake:       	White=1     	Black=5      Inaccurate:     	---       	Black=1      OK:         	White=12    	Black=8      Best:        	White=2     	---} ({Not} 34. Rxd7 Qf2+ 35. Kh1 Qf1+ 36. Kh2 Qf2+ 37. Kh1 Qf1+ 38. Kh2 Qf2+ $11) 1-0